fUSD/lending_fUSD_20250319
["ID","MTS","AMOUNT","RATE_DAILY","PERIOD"]
[356385451,1742365489924,-2619.94,0.00046575,120]
[356385452,1742365489968,-736.07,0.00046575,120]
[356385453,1742365490008,-1236.86,0.00046575,120]
[356385454,1742365490048,-337.74062495,0.00046575,120]
[356385455,1742365490087,-642.42,0.00046575,120]
[356385456,1742365490127,-500.0,0.00046575,120]
[356385457,1742365490166,-577.61,0.00046575,120]
[356385458,1742365490205,-502.34,0.00046575,120]
[356385459,1742365490246,-999.0,0.00046575,120]
[356385460,1742365490283,-1000.0,0.00046575,120]
[356385461,1742365490319,-1000.0,0.00046575,120]
[356385462,1742365490356,-1000.0,0.00046575,120]
[356385463,1742365490393,-1000.0,0.00046575,120]
[356385464,1742365490430,-1000.0,0.00046575,120]
[356385465,1742365490467,-1000.0,0.00046575,120]
[356385466,1742365490504,-1000.0,0.00046575,120]
[356385467,1742365490541,-1000.0,0.00046575,120]
[356385468,1742365490579,-1000.0,0.00046575,120]
[356385469,1742365490617,-1000.0,0.00046575,120]
[356385470,1742365490653,-1000.0,0.00046575,120]
[356385471,1742365490691,-1000.0,0.00046575,120]
[356385472,1742365490730,-1000.0,0.00046575,120]
[356385473,1742365490769,-1000.0,0.00046575,120]
[356385474,1742365490812,-751.54883382,0.00046575,120]
[356385475,1742365490856,-2836.09075861,0.00046634,35]
[356385476,1742365490901,-340.20334,0.000467,120]
[356385477,1742365490945,-150.0,0.000467,120]
[356385478,1742365490989,-150.0,0.000467,120]
[356385479,1742365491034,-160.0,0.000468,120]
[356385480,1742365491078,-588.39,0.00046849,120]
[356385481,1742365491119,-695.53,0.00046849,120]
[356385482,1742365491163,-599.27,0.00046849,120]
[356385483,1742365491203,-500.0,0.00046849,120]
[356385484,1742365491241,-675.48,0.00046849,120]
[356385485,1742365491279,-2951.2,0.00046849,120]
[356385486,1742365491315,-731.85,0.00046849,120]
[356385487,1742365491351,-233.55,0.00046849,120]
[356385488,1742365491385,-1000.25,0.00046849,120]
[356385489,1742365491421,-150.0,0.00046849,120]
[356385490,1742365491457,-4954.91,0.00046849,120]
[356385491,1742365491494,-515.86,0.00046849,120]
[356385492,1742365491530,-1142.14,0.00046849,120]
[356385493,1742365491568,-1372.58,0.00046849,120]
[356385494,1742365491605,-500.0,0.00046849,120]
[356385495,1742365491645,-1414.54,0.00046849,120]
[356385496,1742365491682,-1247.27,0.00046849,120]
[356385497,1742365491719,-571.9,0.00046849,120]
[356385498,1742365491755,-1731.09,0.00046849,120]
[356385499,1742365491792,-690.54,0.00046849,120]
[356385500,1742365491831,-1601.13,0.00046849,120]
[356385501,1742365491869,-647.8,0.00046849,120]
[356385502,1742365491909,-619.12,0.00046849,120]
[356385503,1742365491951,-500.0,0.00046849,120]
[356385504,1742365491993,-657.42,0.00046849,120]
[356385505,1742365492035,-1197.86,0.00046849,120]
[356385506,1742365492075,-1514.57,0.00046849,120]
[356385507,1742365492114,-500.0,0.00046849,120]
[356385508,1742365492345,-922.17,0.00046849,120]
[356385509,1742365492384,-809.28,0.00046849,120]
[356385510,1742365492422,-736.15,0.00046849,120]
[356385511,1742365492459,-1008.04,0.00046849,120]
[356385512,1742365492497,-481.36576229,0.00046849,120]
[356385513,1742365492534,-592.99,0.00046849,120]
[356385514,1742365492571,-739.66,0.00046849,120]
[356385515,1742365492608,-1038.26,0.00046849,120]
[356385516,1742365492645,-618.45,0.00046849,120]
[356385517,1742365492682,-500.0,0.00046849,120]
[356385518,1742365492718,-500.0,0.00046849,120]
[356385519,1742365492756,-786.33,0.00046849,120]
[356385520,1742365492795,-1418.99,0.00046849,120]
[356385521,1742365492832,-512.77,0.00046849,120]
[356385522,1742365492868,-691.37,0.00046849,120]
[356385523,1742365492907,-716.82,0.00046849,120]
[356385524,1742365492946,-747.05,0.00046849,120]
[356385525,1742365492988,-2355.67,0.00046849,120]
[356385526,1742365493028,-3733.89,0.00046849,120]
[356385527,1742365493067,-10802.93,0.00046849,120]
[356385528,1742365493104,-1321.81,0.00046849,120]
[356385529,1742365493140,-2619.94,0.00046849,120]
[356385530,1742365493177,-736.07,0.00046849,120]
[356385531,1742365493212,-1236.86,0.00046849,120]
[356385532,1742365493248,-642.42,0.00046849,120]
[356385533,1742365493283,-500.0,0.00046849,120]
[356385534,1742365493318,-577.61,0.00046849,120]
[356385535,1742365493354,-502.34,0.00046849,120]
[356385536,1742365493389,-335.0,0.00046849,90]
[356385537,1742365493426,-188.48,0.00046907,120]
[356385538,1742365493462,-6177.81726371,0.00046969,120]
[356385539,1742365493498,-1863148.09247113,0.00046969,120]
[356385540,1742365498428,-3136851.90752887,0.00046969,120]
[356385541,1742365498467,-1000.0,0.00046999,120]
[356385542,1742365498504,-100000.01,0.00047,120]
[356385543,1742365498542,-650.0,0.00047,90]
[356385544,1742365498578,-150.0,0.00047,120]
[356385545,1742365498616,-141907.01706088,0.00047,120]
[356385546,1742365498652,-168924.57865689,0.00047,120]
[356385547,1742365498688,-750.0,0.00047,120]
[356385548,1742365498724,-1000000.0,0.00047,120]
[356385549,1742365498761,-1000000.0,0.00047,120]
[356385550,1742365498797,-449766.48675336,0.00047,120]
[356385553,1742365501879,-550233.51324664,0.00047,120]
[356385555,1742365501923,-1000000.0,0.00047,120]
[356385556,1742365501966,-335.0,0.00047,90]
[356385557,1742365502009,-189.3,0.00047103,120]
[356385558,1742365502051,-588.39,0.00047123,120]
[356385559,1742365502091,-695.53,0.00047123,120]
[356385560,1742365502132,-599.27,0.00047123,120]
[356385561,1742365502170,-534.25010082,0.00047123,120]
[356385563,1742365502208,-675.48,0.00047123,120]
[356385564,1742365502248,-2951.2,0.00047123,120]
[356385565,1742365502287,-731.85,0.00047123,120]
[356385566,1742365502324,-1000.25,0.00047123,120]
[356385567,1742365502360,-150.0,0.00047123,120]
[356385568,1742365502397,-4954.91,0.00047123,120]
[356385569,1742365502436,-515.86,0.00047123,120]
[356385570,1742365502472,-1142.14,0.00047123,120]
[356385572,1742365502509,-1372.58,0.00047123,120]
[356385573,1742365502547,-500.0,0.00047123,120]
[356385574,1742365502586,-1414.54,0.00047123,120]
[356385575,1742365502624,-1247.27,0.00047123,120]
[356385576,1742365502663,-571.9,0.00047123,120]
[356385577,1742365502702,-1731.09,0.00047123,120]
[356385579,1742365502741,-690.54,0.00047123,120]
[356385580,1742365502782,-1601.13,0.00047123,120]
[356385581,1742365502827,-647.8,0.00047123,120]
[356385582,1742365502869,-619.12,0.00047123,120]
[356385583,1742365502910,-632.46496505,0.00047123,120]
[356385584,1742365502953,-657.42,0.00047123,120]
[356385585,1742365502995,-1197.86,0.00047123,120]
[356385587,1742365503040,-1514.57,0.00047123,120]
[356385588,1742365503086,-500.0,0.00047123,120]
[356385589,1742365503133,-922.17,0.00047123,120]
[356385590,1742365503180,-809.28,0.00047123,120]
[356385591,1742365503228,-736.15,0.00047123,120]
[356385592,1742365503277,-1008.04,0.00047123,120]
[356385594,1742365503325,-592.99,0.00047123,120]
[356385595,1742365503376,-739.66,0.00047123,120]
[356385596,1742365503425,-1038.26,0.00047123,120]
[356385597,1742365503471,-618.45,0.00047123,120]
[356385598,1742365503516,-500.0,0.00047123,120]
[356385599,1742365503563,-500.0,0.00047123,120]
[356385600,1742365503610,-786.33,0.00047123,120]
[356385601,1742365503661,-1418.99,0.00047123,120]
[356385602,1742365503708,-512.77,0.00047123,120]
[356385605,1742365503916,-691.37,0.00047123,120]
[356385606,1742365503964,-716.82,0.00047123,120]
[356385607,1742365504012,-747.05,0.00047123,120]
[356385608,1742365504058,-2355.67,0.00047123,120]
[356385609,1742365504103,-3733.89,0.00047123,120]
[356385610,1742365504148,-10802.93,0.00047123,120]
[356385611,1742365504199,-1321.81,0.00047123,120]
[356385612,1742365504245,-2619.94,0.00047123,120]
[356385613,1742365504290,-736.07,0.00047123,120]
[356385614,1742365504337,-1236.86,0.00047123,120]
[356385615,1742365504382,-642.42,0.00047123,120]
[356385616,1742365504429,-344.52639784,0.00047123,120]
[356385617,1742365504475,-577.61,0.00047123,120]
[356385618,1742365504532,-502.34,0.00047123,120]
[356385619,1742365504580,-999.0,0.00047123,120]
[356385620,1742365504643,-335.0,0.00047123,90]
[356385621,1742365504692,-588.55377417,0.00047397,120]
[356385622,1742365504748,-695.57129917,0.00047397,120]
[356385623,1742365504798,-599.37845402,0.00047397,120]
[356385624,1742365504845,-675.66187696,0.00047397,120]
[356385625,1742365504888,-2951.29046159,0.00047397,120]
[356385626,1742365504932,-731.961921,0.00047397,120]
[356385627,1742365504975,-1000.46731269,0.00047397,120]
[356385628,1742365505019,-150.0,0.00047397,120]
[356385629,1742365505063,-4955.10052894,0.00047397,120]
[356385630,1742365505114,-516.04077391,0.00047397,120]
[356385631,1742365505162,-1142.16547978,0.00047397,120]
[356385632,1742365505210,-1372.7027235,0.00047397,120]
[356385633,1742365505253,-247.35204492,0.00047397,120]
[356385634,1742365505298,-1414.66266965,0.00047397,120]
[356385635,1742365505343,-1247.33056229,0.00047397,120]
[356385636,1742365505388,-571.93,0.00047397,120]
[356385637,1742365505433,-1731.17471957,0.00047397,120]
[356385638,1742365505476,-690.64199246,0.00047397,120]
[356385639,1742365505518,-1601.24413577,0.00047397,120]
[356385640,1742365505561,-647.99856363,0.00047397,120]
[356385641,1742365505607,-619.32190889,0.00047397,120]
[356385642,1742365505651,-657.52414229,0.00047397,120]
[356385643,1742365505696,-1198.03,0.00047397,120]
[356385644,1742365505742,-1514.78,0.00047397,120]
[356385645,1742365505785,-250.25492673,0.00047397,120]
[356385646,1742365505830,-922.36083455,0.00047397,120]
[356385647,1742365505875,-809.47808774,0.00047397,120]
[356385648,1742365505922,-736.2823503,0.00047397,120]
[356385649,1742365505971,-1008.07755738,0.00047397,120]
[356385650,1742365506018,-593.060767,0.00047397,120]
[356385651,1742365506065,-739.68540733,0.00047397,120]
[356385652,1742365506112,-1038.43818158,0.00047397,120]
[356385653,1742365506159,-618.532062,0.00047397,120]
[356385654,1742365506205,-440.90082556,0.00047397,120]
[356385655,1742365506248,-379.83426387,0.00047397,120]
[356385656,1742365506293,-786.55985984,0.00047397,120]
[356385657,1742365506341,-1419.12522573,0.00047397,120]
[356385658,1742365506383,-512.81490268,0.00047397,120]
[356385659,1742365506427,-691.42014297,0.00047397,120]
[356385660,1742365506472,-716.8274273,0.00047397,120]
[356385661,1742365506518,-747.14964073,0.00047397,120]
[356385662,1742365506565,-2355.6812755,0.00047397,120]
[356385663,1742365506609,-3733.91573831,0.00047397,120]
[356385664,1742365506656,-10803.12658764,0.00047397,120]
[356385665,1742365506702,-1321.91564548,0.00047397,120]
[356385666,1742365506751,-2620.16114797,0.00047397,120]
[356385667,1742365506799,-736.12451156,0.00047397,120]
[356385668,1742365506847,-1237.0356706,0.00047397,120]
[356385669,1742365506896,-642.59279157,0.00047397,120]
[356385670,1742365506945,-577.61735706,0.00047397,120]
[356385671,1742365506996,-502.39,0.00047397,120]
[356385672,1742365507042,-335.0,0.00047397,90]
[356385673,1742365507085,-217.41950811,0.000475,120]
[356385674,1742365507134,-150.0,0.000475,120]
[356385675,1742365507219,-1000000.0,0.000475,120]
[356385676,1742365507284,-1909.12787668,0.000475,90]
[356385677,1742365507342,-150.0,0.00047671,120]
[356385678,1742365507415,-999.0,0.00047671,120]
[356385679,1742365507468,-335.0,0.00047671,90]
[356385680,1742365507544,-3312700.57937068,0.00047699,120]
[356385687,1742365521038,-1687299.42062932,0.00047699,120]
[356385688,1742365521085,-2000.0,0.000477,120]
[356385689,1742365521132,-2000.0,0.000477,120]
[356385690,1742365521179,-470.0,0.000477,120]
[356385691,1742365521224,-324.66301691,0.0004788,100]
[356385692,1742365521270,-150.0,0.000479,120]
[356385693,1742365521469,-153.62,0.00047945,120]
[356385694,1742365521519,-50000.0,0.00048,48]
[356385695,1742365521566,-447.76992468,0.00048,120]
[356385696,1742365521611,-727.718,0.00048,90]
[356385697,1742365521658,-4277.9353423,0.00048,65]
[356385698,1742365521706,-2957.8608743,0.00048,120]
[356385699,1742365521753,-200.0,0.00048,120]
[356385700,1742365521798,-150.0,0.00048,120]
[356385701,1742365521844,-1200.0,0.00048,120]
[356385702,1742365521891,-5000.0,0.00048,120]
[356385703,1742365521940,-240.0,0.00048,120]
[356385704,1742365521988,-147099.64762972,0.00048,120]
[356385705,1742365522036,-478.73853809,0.00048,120]
[356385706,1742365522083,-999.0,0.00048219,120]
[356385707,1742365522129,-188.48,0.00048277,120]
[356385708,1742365522178,-177.52307977,0.000483,120]
[356385709,1742365522224,-13515.90241238,0.000484,120]
[356385710,1742365522271,-5000.0,0.000484,120]
[356385711,1742365522317,-1000000.0,0.000485,120]
[356385712,1742365522362,-21520.09878962,0.000485,120]
[356385713,1742365522406,-340.20334,0.000485,120]
[356385714,1742365522452,-150.0,0.000485,120]
[356385715,1742365522498,-1312.48263585,0.000486,120]
[356385716,1742365522543,-999.0,0.00048767,120]
[356385717,1742365522589,-2204.9964861,0.000488,120]
[356385718,1742365522635,-2077131.95,0.0004889,120]
[356385719,1742365522680,-232.98696797,0.000489,120]
[356385720,1742365522726,-335.0,0.00048904,90]
[356385721,1742365522771,-698.39458829,0.00048989,120]
[356385722,1742365522816,-698.39458829,0.00048989,120]
[356385723,1742365522862,-698.39458829,0.00048989,120]
[356385724,1742365522911,-698.39458829,0.00048989,120]
[356385725,1742365522958,-698.39458829,0.00048989,120]
[356385726,1742365523007,-698.39458829,0.00048989,120]
[356385727,1742365523054,-698.39458829,0.00048989,120]
[356385728,1742365523101,-698.39458829,0.00048989,120]
[356385729,1742365523149,-698.39458829,0.00048989,120]
[356385730,1742365523199,-698.39458829,0.00048989,120]
[356385731,1742365523246,-698.39458829,0.00048989,120]
[356385732,1742365523291,-698.39458829,0.00048989,120]
[356385733,1742365523337,-698.39458829,0.00048989,120]
[356385734,1742365523386,-698.39458829,0.00048989,120]
[356385735,1742365523434,-698.39458829,0.00048989,120]
[356385736,1742365523482,-698.39458829,0.00048989,120]
[356385737,1742365523529,-698.39458829,0.00048989,120]
[356385738,1742365523576,-698.39458829,0.00048989,120]
[356385739,1742365523623,-698.39458829,0.00048989,120]
[356385740,1742365523668,-698.39458829,0.00048989,120]
[356385741,1742365523716,-698.39458829,0.00048989,120]
[356385742,1742365523763,-698.39458829,0.00048989,120]
[356385743,1742365523811,-698.39458829,0.00048989,120]
[356385744,1742365523859,-698.39458829,0.00048989,120]
[356385745,1742365523906,-698.39458829,0.00048989,120]
[356385746,1742365523954,-698.39458829,0.00048989,120]
[356385747,1742365524000,-698.39458829,0.00048989,120]
[356385748,1742365524047,-698.39458829,0.00048989,120]
[356385749,1742365524094,-698.39458829,0.00048989,120]
[356385750,1742365524143,-698.39458829,0.00048989,120]
[356385751,1742365524190,-698.39458829,0.00048989,120]
[356385752,1742365524239,-698.39458829,0.00048989,120]
[356385753,1742365524285,-698.39458829,0.00048989,120]
[356385754,1742365524331,-698.39458829,0.00048989,120]
[356385755,1742365524376,-698.39458829,0.00048989,120]
[356385756,1742365524420,-698.39458829,0.00048989,120]
[356385757,1742365524467,-698.39458829,0.00048989,120]
[356385758,1742365524514,-698.39458829,0.00048989,120]
[356385759,1742365524560,-698.39458829,0.00048989,120]
[356385760,1742365524606,-698.39458829,0.00048989,120]
[356385761,1742365524652,-698.39458829,0.00048989,120]
[356385762,1742365524701,-698.39458829,0.00048989,120]
[356385763,1742365524748,-698.39458829,0.00048989,120]
[356385764,1742365524795,-698.39458829,0.00048989,120]
[356385765,1742365524843,-698.39458829,0.00048989,120]
[356385766,1742365524890,-698.39458829,0.00048989,120]
[356385767,1742365524937,-698.39458829,0.00048989,120]
[356385768,1742365524986,-698.39458829,0.00048989,120]
[356385769,1742365525033,-698.39458829,0.00048989,120]
[356385770,1742365525080,-698.39458829,0.00048989,120]
[356385771,1742365525127,-698.39458829,0.00048989,120]
[356385772,1742365525175,-698.39458829,0.00048989,120]
[356385773,1742365525221,-698.39458829,0.00048989,120]
[356385774,1742365525267,-698.39458829,0.00048989,120]
[356385775,1742365525311,-698.39458829,0.00048989,120]
[356385776,1742365525356,-698.39458829,0.00048989,120]
[356385777,1742365525402,-698.39458829,0.00048989,120]
[356385778,1742365525447,-698.39458829,0.00048989,120]
[356385779,1742365525494,-698.39458829,0.00048989,120]
[356385780,1742365525540,-698.39458829,0.00048989,120]
[356385781,1742365525588,-698.39458829,0.00048989,120]
[356385782,1742365525637,-698.39458829,0.00048989,120]
[356385783,1742365525684,-698.39458829,0.00048989,120]
[356385784,1742365525732,-698.39458829,0.00048989,120]
[356385785,1742365525780,-698.39458829,0.00048989,120]
[356385786,1742365525829,-698.39458829,0.00048989,120]
[356385787,1742365525878,-698.39458829,0.00048989,120]
[356385788,1742365525926,-698.39458829,0.00048989,120]
[356385789,1742365525976,-698.39458829,0.00048989,120]
[356385790,1742365526026,-698.39458829,0.00048989,120]
[356385791,1742365526073,-698.39458829,0.00048989,120]
[356385792,1742365526118,-698.39458829,0.00048989,120]
[356385793,1742365526170,-698.39458829,0.00048989,120]
[356385794,1742365526219,-698.39458829,0.00048989,120]
[356385795,1742365526268,-698.39458829,0.00048989,120]
[356385796,1742365526315,-698.39458829,0.00048989,120]
[356385797,1742365526364,-698.39458829,0.00048989,120]
[356385798,1742365526555,-698.39458829,0.00048989,120]
[356385799,1742365526606,-698.39458829,0.00048989,120]
[356385800,1742365526656,-698.39458829,0.00048989,120]
[356385801,1742365526706,-698.39458829,0.00048989,120]
[356385802,1742365526754,-698.39458829,0.00048989,120]
[356385803,1742365526801,-698.39458829,0.00048989,120]
[356385804,1742365526847,-698.39458829,0.00048989,120]
[356385805,1742365526895,-698.39458829,0.00048989,120]
[356385806,1742365526943,-698.39458829,0.00048989,120]
[356385807,1742365526992,-698.39458829,0.00048989,120]
[356385808,1742365527041,-698.39458829,0.00048989,120]
[356385809,1742365527089,-698.39458829,0.00048989,120]
[356385810,1742365527139,-698.39458829,0.00048989,120]
[356385811,1742365527188,-698.39458829,0.00048989,120]
[356385812,1742365527235,-698.39458829,0.00048989,120]
[356385813,1742365527292,-698.39458829,0.00048989,120]
[356385814,1742365527347,-698.39458829,0.00048989,120]
[356385815,1742365527397,-698.39458829,0.00048989,120]
[356385816,1742365527447,-698.39458829,0.00048989,120]
[356385817,1742365527498,-698.39458829,0.00048989,120]
[356385818,1742365527547,-698.39458829,0.00048989,120]
[356385819,1742365527597,-698.39458829,0.00048989,120]
[356385820,1742365527648,-698.39458829,0.00048989,120]
[356385821,1742365527699,-566.12691574,0.0004899,120]
[356385822,1742365527747,-1000.0,0.00048999,120]
[356385823,1742365527794,-1017.0,0.00049,60]
[356385824,1742365527842,-447.76992468,0.00049,120]
[356385825,1742365527891,-950.0,0.00049,120]
[356385826,1742365527941,-896894.64666357,0.00049,120]
[356385827,1742365533121,-103105.35333643,0.00049,120]
[356385828,1742365533172,-4327.63144192,0.00049,120]
[356385829,1742365533221,-150.0,0.00049,120]
[356385830,1742365533269,-217.44772731,0.00049,120]
[356385831,1742365533316,-171.1837373,0.00049,60]
[356385832,1742365533366,-380000.0,0.00049,120]
[356385833,1742365533414,-160.0,0.00049,120]
[356385834,1742365533468,-150.0,0.000491,120]
[356385835,1742365533516,-500.0,0.00049315,120]
[356385836,1742365533566,-265.70018053,0.00049315,120]
[356385837,1742365533619,-999.0,0.00049315,120]
[356385838,1742365533673,-3620.36133833,0.00049346,120]
[356385839,1742365533724,-1000000.0,0.000495,120]
[356385840,1742365533776,-610.86223058,0.000495,120]
[356385841,1742365533827,-188.48,0.00049647,120]
[356385842,1742365533877,-19118.64,0.000497,40]
[356385843,1742365533929,-3088.90863185,0.0004986,120]
[356385844,1742365533978,-4483326.43137575,0.0004986,120]
[356385845,1742365545898,-516673.56862425,0.0004986,120]
[356385846,1742365545946,-500.0,0.00049863,120]
[356385847,1742365545995,-999.0,0.00049863,120]
[356385848,1742365546043,-414.74672155,0.00049999,120]
[356385849,1742365546090,-392.78084016,0.00049999,120]
[356385850,1742365546137,-164.09278998,0.00049999,120]
[356385851,1742365546188,-50000.0,0.0005,50]
[356385852,1742365546235,-500.0,0.0005,120]
[356385853,1742365546291,-1000000.0,0.0005,120]
[356385854,1742365546336,-533.19,0.0005,120]
[356385855,1742365546383,-650.0,0.0005,120]
[356385856,1742365546430,-1000000.0,0.0005,120]
[356385857,1742365546478,-1000000.0,0.0005,120]
[356385858,1742365546523,-447.76992468,0.0005,120]
[356385859,1742365546569,-5762.38265838,0.0005,60]
[356385860,1742365546615,-474.77619333,0.0005,120]
[356385861,1742365546662,-274.01911461,0.0005,120]
[356385862,1742365546707,-150.0,0.0005,120]
[356385863,1742365546752,-500.0,0.0005,120]
[356385864,1742365546796,-531.54646457,0.0005,120]
[356385865,1742365546842,-1000.97305626,0.0005,120]
[356385866,1742365546889,-1261.99680851,0.0005,120]
[356385867,1742365546936,-2188.14870333,0.0005,120]
[356385868,1742365546983,-4475.31355415,0.0005,120]
[356385869,1742365547030,-357.18719803,0.0005,120]
[356385870,1742365547076,-443.34993693,0.0005,120]
[356385871,1742365547121,-253.760436,0.0005,120]
[356385872,1742365547168,-5000.0,0.0005,120]
[356385873,1742365547217,-200.0,0.0005,120]
[356385874,1742365547260,-340.20334,0.000503,120]
[356385875,1742365547306,-150.0,0.000503,120]
[356385876,1742365547353,-270.61005,0.000503,120]
[356385877,1742365547397,-500.0,0.0005041,120]
[356385878,1742365547442,-999.0,0.0005041,120]
[356385879,1742365547486,-200.0,0.000505,120]
[356385880,1742365547714,-680.0,0.000508,120]
[356385881,1742365547759,-500.0,0.00050958,120]
[356385882,1742365547803,-999.0,0.00050958,120]
[356385883,1742365547849,-1000000.0,0.00051,120]
[356385884,1742365547897,-1000000.0,0.00051,120]
[356385885,1742365547944,-401212.58358528,0.00051,120]
[356385886,1742365550959,-598787.41641472,0.00051,120]
[356385887,1742365551007,-1000000.0,0.00051,120]
[356385888,1742365551053,-447.76992468,0.00051,120]
[356385889,1742365551100,-150.0,0.00051,120]
[356385890,1742365551145,-200.0,0.00051,120]
[356385891,1742365551190,-150.0,0.00051,120]
[356385892,1742365551235,-188.48,0.00051017,120]
[356385893,1742365551280,-160.0,0.000512,120]
[356385894,1742365551323,-335.0,0.00051349,120]
[356385895,1742365551367,-343.0,0.00051349,120]
[356385896,1742365551411,-200.0,0.000515,120]
[356385897,1742365551454,-500.0,0.00051506,120]
[356385898,1742365551499,-175.44965723,0.00051506,120]
[356385899,1742365551544,-189.3,0.00051582,120]
[356385900,1742365551589,-1000.0,0.00051999,120]
[356385901,1742365551635,-1000000.0,0.00052,120]
[356385902,1742365551680,-500.0,0.00052,120]
[356385903,1742365551724,-447.76992468,0.00052,120]
[356385904,1742365551767,-101000.01,0.00052,120]
[356385905,1742365551809,-150.0,0.00052,120]
[356385906,1742365551854,-531.54646457,0.00052,120]
[356385907,1742365551899,-321.76775379,0.00052,120]
[356385908,1742365551945,-180.23421223,0.00052,120]
[356385909,1742365551990,-200.0,0.00052,120]
[356385910,1742365552035,-3293842.2556481,0.00052045,120]
[356385942,1742365831745,-865.0,9.5e-05,2]
[356385944,1742365831758,-116.13249268,9.5e-05,2]
[356385946,1742365831767,-250.0,9.5e-05,2]
[356385948,1742365831776,-144.10347281,9.798e-05,2]
[356385951,1742365831838,-1942.02652719,9.798e-05,2]
[356385952,1742365831847,-1061.5346,9.8e-05,2]
[356385953,1742365831857,-300.0,9.899e-05,2]
[356385954,1742365831867,-500.0,9.9e-05,2]
[356385955,1742365831876,-1000.0,9.9e-05,2]
[356385956,1742365831886,-1241.6571,9.9e-05,2]
[356385957,1742365831895,-895.43295848,9.9e-05,2]
[356385958,1742365831907,-221.01544152,9.9e-05,2]
[356385959,1742365831917,-598.79067114,9.9e-05,2]
[356385960,1742365832071,-358.18372886,9.9e-05,2]
[356385961,1742365832081,-441.312374,9.948e-05,2]
[356385962,1742365832091,-278.44389714,9.973e-05,2]
[356385974,1742365837747,-222.00158248,9.973e-05,2]
[356385975,1742365837756,-115.20106027,9.973e-05,2]
[356385976,1742365837816,-295.92651515,9.973e-05,2]
[356385977,1742365837826,-881.96758429,9.999e-05,2]
[356385978,1742365837893,-2971.15966506,9.999e-05,2]
[356385979,1742365837902,-150.0,9.999e-05,2]
[356385980,1742365837912,-1474.18500074,0.0001,2]
[356385983,1742365840097,-227.6265,9.9e-05,2]
[356385984,1742365840106,-48123.37895508,0.0001,2]
[356385985,1742365840118,-883.51789075,0.0001,2]
[356385986,1742365840137,-891.72127326,0.0001,2]
[356385987,1742365840246,-187.48575339,0.0001,2]
[356385988,1742365840269,-807.22,0.0001,2]
[356385989,1742365840356,-700.91482842,0.0001,2]
[356385995,1742365842841,-1786.6164317,0.0001,2]
[356385996,1742365842853,-7961.58201494,0.0001,2]
[356385997,1742365843137,-673.82,0.0001,2]
[356386016,1742366877803,2281.41,8.219e-05,2]
[356386026,1742367021118,-583.7408,8.946e-05,2]
[356386027,1742367030533,1509.26,0.00030281,30]
[356386032,1742367031947,-400.41195319,8.946e-05,2]
[356386033,1742367031985,-515.84724681,8.946e-05,2]
[356386034,1742367031995,-2486.19924333,9.002e-05,2]
[356386035,1742367032123,-391.2107439,9.002e-05,2]
[356386036,1742367032135,-2737.33492461,9.002e-05,2]
[356386037,1742367032147,-1587.35583697,9.002e-05,2]
[356386038,1742367032159,-16697.89925119,9.002e-05,2]
[356386039,1742367032170,-250.0,9.018e-05,2]
[356386040,1742367032179,-1829.51,9.034e-05,2]
[356386041,1742367032189,-180.56,9.087e-05,2]
[356386042,1742367032199,-300.0,9.153e-05,2]
[356386043,1742367032209,-250.0,9.269e-05,2]
[356386044,1742367032219,-150.0,9.291e-05,2]
[356386045,1742367032229,-1974.02991242,9.5e-05,2]
[356386046,1742367032239,-1000.0,9.53e-05,2]
[356386047,1742367032248,-167.1864258,9.7e-05,2]
[356386048,1742367032257,-503.0,9.753e-05,2]
[356386049,1742367032267,-157.82,9.807e-05,2]
[356386050,1742367032278,-150.0,9.899e-05,2]
[356386051,1742367032287,-1000.0,9.9e-05,2]